bitfinex-derivatives/quotes_SOLF0:USTF0_20251216
["timestamp","ask_amount","ask_price","bid_price","bid_amount"]
[1765895091813,3.31,128.05,128.01,3.19]
[1765895092027,0.05974249,128.04,128.03,1.91457281]
[1765895092228,7.09064249,128.04,128.03,1.91457281]
[1765895092822,10.40064249,128.04,128.03,1.91457281]
[1765895093023,3.31,128.03,128.02,0.05065763]
[1765895093828,10.40064249,128.04,128.02,0.05065763]
[1765895094622,3.31,128.03,128.02,0.05065763]
[1765895096328,10.40064249,128.04,128.02,0.05065763]
[1765895096527,0.05974249,128.04,128.03,1.91604836]
[1765895096723,0.05974249,128.04,128.02,3.24065763]
[1765895096920,0.05974249,128.04,128.03,1.91566621]
[1765895097340,3.36974249,128.04,128.02,0.05065763]
[1765895098138,3.31,128.03,128.02,0.05065763]
[1765895098938,3.31,128.02,127.96,69.39]
[1765895099228,3.31,128.02,128.0,1.91779491]
[1765895099627,7.0322,128.01,128.0,1.91779491]
[1765895099937,10.3422,128.01,128.0,1.96612124]
[1765895100132,10.3422,128.01,128.0,0.04832633]
[1765895100440,3.31,127.97,127.91,3.19]
[1765895100929,3.31,127.97,127.93,3.19]
[1765895101121,109.3661,128.04,127.96,3.19]
[1765895101321,0.05274451,128.01,127.99,1.92036535]
[1765895101633,7.84372754,128.08,128.01,3.19]
[1765895101933,7.0301,128.05,128.03,1.92036535]
[1765895102234,7.0301,128.05,128.04,1.92036535]
[1765895102529,7.0301,128.05,128.0,3.19]
[1765895102730,10.3401,128.05,128.03,1.91815105]
[1765895103034,7.0311,128.03,128.01,0.05250705]
[1765895103334,7.0311,128.03,128.02,1.91905985]
[1765895103737,10.4111,128.03,128.01,0.05250705]
[1765895104527,3.38,128.03,128.01,0.05250705]
[1765895104727,0.05911941,128.05,128.02,5.20057555]
[1765895104932,0.05911941,128.05,128.04,1.92057555]
[1765895105138,0.05911941,128.05,128.02,3.28]
[1765895105431,0.05911941,128.05,128.04,1.92018394]
[1765895105732,3.43911941,128.05,128.04,1.92018394]
[1765895105937,3.38,128.03,128.01,0.05250705]
[1765895108435,3.38,127.98,127.93,3.28]
[1765895108742,3.38,127.97,127.96,1.92887865]
[1765895108929,109.3952,128.01,127.96,1.92887865]
[1765895108930,3.38,128.0,127.96,1.92887865]
[1765895109333,3.38,127.97,127.95,1.92887865]
[1765895110734,0.05529459,127.99,127.95,1.92887865]
[1765895110940,3.43529459,127.99,127.96,1.92887865]
[1765895111136,3.43529459,127.99,127.93,7.0365]
[1765895111435,3.43529459,127.99,127.96,1.92634968]
[1765895111931,3.38,127.97,127.96,1.92634968]
[1765895113430,3.38,127.97,127.95,1.92634968]
[1765895113631,3.43460756,127.97,127.92,3.28]
[1765895113829,3.43460756,127.97,127.95,1.92472552]
[1765895114538,7.0351,127.96,127.95,1.92472552]
[1765895114741,0.05460756,127.97,127.95,5.20472552]
[1765895114929,0.05460756,127.97,127.96,1.92472552]
[1765895115126,0.05460756,127.97,127.92,3.28]
[1765895115325,0.05460756,127.97,127.96,1.92394944]
[1765895115724,0.05460756,127.97,127.95,1.92394944]
[1765895115935,0.05460756,127.97,127.92,3.28]
[1765895116143,3.43460756,127.97,127.95,1.9225492]
[1765895116939,0.05460756,127.97,127.95,5.2025492]
[1765895117133,0.05460756,127.97,127.96,1.92230522]
[1765895118126,7.08910756,127.97,127.95,1.92230522]
[1765895118332,10.46910756,127.97,127.95,1.92230522]
[1765895118934,3.38,127.96,127.95,1.92230522]
[1765895119436,10.46910756,127.97,127.95,1.92230522]
[1765895121244,7.08910756,127.97,127.95,1.92230522]
[1765895121745,0.05460756,127.97,127.96,1.92230522]
[1765895122148,0.05460756,127.97,127.96,3.28]
[1765895122447,3.38,128.03,127.97,3.28]
[1765895122647,179.0332,128.06,128.0,5.20592934]
[1765895122945,3.38,128.05,128.01,1.92592934]
[1765895123147,3.38,128.05,128.0,3.28]
[1765895123348,0.05948464,128.04,128.01,1.98112066]
[1765895123646,3.38,128.02,128.01,0.05484502]
[1765895125939,10.4116,128.02,128.01,0.05484502]
[1765895126241,10.4116,128.02,128.01,0.00484502]
[1765895126242,11.9716,128.02,128.01,0.00484502]
[1765895128253,78.2716,128.02,128.01,0.00484502]
[1765895128453,11.9716,128.02,128.01,0.00484502]
[1765895128646,10.4151,127.96,127.92,3.28]
[1765895128847,10.4151,127.96,127.95,1.93292616]
[1765895129239,7.0351,127.96,127.95,1.93292616]
[1765895129437,76.7144,127.98,127.95,1.93292616]
[1765895129636,69.73927335,127.98,127.95,1.93292616]
[1765895130145,3.43927335,127.98,127.95,1.93292616]
[1765895130543,10.4145,127.97,127.95,1.93292616]
[1765895131347,10.4149,127.96,127.95,1.93292616]
[1765895131553,7.0349,127.96,127.95,1.93292616]
[1765895131754,10.4149,127.96,127.95,1.93292616]
[1765895133345,7.0349,127.96,127.95,1.93292616]
[1765895133947,10.2549,127.96,127.95,1.93292616]
[1765895136648,10.2555,127.95,127.94,1.93292616]
[1765895136848,3.22,127.95,127.93,1.93292616]
[1765895137556,7.036,127.94,127.93,1.93292616]
[1765895137958,10.256,127.94,127.93,1.93292616]
[1765895139160,76.556,127.94,127.93,1.93292616]
[1765895139660,10.2566,127.93,127.92,1.93292616]
[1765895141662,7.0371,127.92,127.89,3.28]
[1765895141863,7.0371,127.92,127.91,1.93996304]
[1765895142065,10.2571,127.92,127.91,1.93996304]
[1765895142565,7.0366,127.93,127.89,3.28]
[1765895142866,10.2566,127.93,127.91,1.93992067]
[1765895143261,10.2571,127.92,127.91,1.93992067]
[1765895143561,3.22,127.91,127.9,1.93992067]
[1765895143759,3.22,127.91,127.86,3.28]
[1765895143965,3.22,127.9,127.89,1.94008331]
[1765895144166,3.22,127.9,127.89,9.59959409]
[1765895144362,3.22,127.89,127.83,3.28]
[1765895144563,3.22,127.89,127.88,1.93969519]
[1765895145256,10.2592,127.89,127.88,1.93969519]
[1765895145459,3.22,127.88,127.82,69.54]
[1765895145649,0.05784751,127.86,127.83,3.28]
[1765895146258,3.27784751,127.86,127.79,109.5731]
[1765895146464,3.22,127.85,127.82,3.28]
[1765895146652,3.27476919,127.85,127.82,3.28]
[1765895147051,0.05476919,127.85,127.82,3.28]
[1765895147650,3.27476919,127.85,127.79,3.28]
[1765895147854,3.22,127.85,127.84,1.93759302]
[1765895148063,7.041,127.85,127.84,1.93759302]
[1765895148566,10.261,127.85,127.81,3.28]
[1765895148757,10.261,127.85,127.83,1.93695702]
[1765895149156,7.041,127.85,127.83,1.93695702]
[1765895149363,10.261,127.85,127.83,1.93695702]
[1765895149668,3.22,127.84,127.83,1.93695702]
[1765895149870,7.041,127.85,127.83,1.93695702]
[1765895150067,10.261,127.85,127.83,1.93695702]
[1765895150371,3.22,127.84,127.83,1.93695702]
[1765895150566,10.2616,127.84,127.83,1.93695702]
[1765895151165,7.0416,127.84,127.83,1.93695702]
[1765895151565,7.0977265,127.86,127.83,1.93695702]
[1765895151761,0.0568265,127.86,127.84,5.21695702]
[1765895151961,0.0568265,127.86,127.85,1.93695702]
[1765895152165,0.0568265,127.86,127.84,3.28]
[1765895152365,0.0568265,127.86,127.85,1.93488216]
[1765895155559,7.0972265,127.86,127.85,1.93488216]
[1765895155766,0.0568265,127.86,127.85,5.21316819]
[1765895155965,0.0568265,127.86,127.85,3.28]
[1765895157174,0.0568265,127.86,127.82,3.28]
[1765895157377,0.0568265,127.86,127.85,1.93294903]
[1765895157575,3.2768265,127.86,127.84,1.93294903]
[1765895157768,3.2768265,127.86,127.82,3.28]
[1765895157968,0.0568265,127.86,127.85,3.28]
[1765895158263,0.05114967,127.87,127.85,3.28]
[1765895158465,3.27114967,127.87,127.82,7.0421]
[1765895158678,3.27114967,127.87,127.85,1.93224421]
[1765895159678,10.31114967,127.87,127.85,1.93224421]
[1765895160076,10.2615,127.85,127.81,3.28]
[1765895160280,0.05168638,127.84,127.83,5.21218605]
[1765895160480,0.05168638,127.84,127.83,3.28]
[1765895162282,0.05168638,127.84,127.81,3.28]
[1765895162472,0.05168638,127.84,127.83,1.93114985]
[1765895162669,0.05168638,127.84,127.83,5.21114985]
[1765895162870,47.24469241,128.12,127.84,3.28]
[1765895162871,109.4643,127.93,127.84,3.28]
[1765895163074,112.6713,127.94,127.88,1.9304388]
[1765895163276,3.22,127.93,127.89,1.9304388]
[1765895163478,3.22,127.93,127.89,5.2104388]
[1765895163774,7.0379,127.91,127.87,3.28]
[1765895164081,0.05261825,127.9,127.89,1.93031173]
[1765895164580,10.31081825,127.9,127.88,0.05168638]
[1765895164781,7.09081825,127.9,127.88,0.05168638]
[1765895164976,7.09081825,127.9,127.88,3.33168638]
[1765895165184,7.09081825,127.9,127.89,1.93099244]
[1765895166086,0.05261825,127.9,127.89,5.21099244]
[1765895166278,0.05261825,127.9,127.89,3.28]
[1765895170580,10.31081825,127.9,127.88,0.05168638]
[1765895170782,10.31081825,127.9,127.89,1.93495499]
[1765895170984,10.2588,127.89,127.88,0.05168638]
[1765895172189,14.84489594,127.89,127.88,0.05168638]
[1765895173483,13.19588232,127.89,127.88,0.05168638]
[1765895176788,7.0388,127.89,127.88,0.05168638]
[1765895177296,0.05261825,127.9,127.88,3.33168638]
[1765895177600,0.05261825,127.9,127.89,1.93816278]
[1765895178289,0.05261825,127.9,127.89,5.21816278]
[1765895178485,0.05261825,127.9,127.89,3.28]
[1765895181688,3.27261825,127.9,127.88,0.05168638]
[1765895182092,10.31101825,127.9,127.88,0.05168638]
[1765895182894,0.05261825,127.9,127.89,5.22165989]
[1765895183200,0.05261825,127.9,127.89,3.28]
[1765895186292,0.05261825,127.9,127.89,10.3188]
[1765895187605,0.05261825,127.9,127.89,3.28]
[1765895188096,0.05261825,127.9,127.88,0.05168638]
[1765895188291,6.15708232,127.89,127.88,0.05168638]
[1765895189204,13.19588232,127.89,127.88,0.05168638]
[1765895190805,9.97588232,127.89,127.88,0.05168638]
[1765895191304,7.0388,127.89,127.88,0.05168638]
[1765895191801,2.98970057,127.9,127.88,3.33168638]
[1765895192001,2.98970057,127.9,127.88,0.05168638]
[1765895192202,13.24800057,127.9,127.88,0.05168638]
[1765895192503,0.05261825,127.9,127.89,5.22341829]
[1765895192904,0.05261825,127.9,127.88,0.05168638]
[1765895193204,0.05261825,127.9,127.89,1.94361973]
[1765895194701,7.09081825,127.9,127.89,1.94361973]
[1765895194908,7.09081825,127.9,127.88,0.05168638]
[1765895195112,13.36790057,127.9,127.88,0.05168638]
[1765895195415,7.0388,127.89,127.88,0.05168638]
[1765895195801,10.3788,127.89,127.88,0.05168638]
[1765895198007,3.34,127.84,127.79,3.06]
[1765895198312,3.34,127.83,127.82,1.94552729]
[1765895198500,3.34,127.83,127.79,3.06]
[1765895198701,3.34,127.83,127.81,1.94554618]
[1765895199109,0.05015064,127.83,127.81,5.00554618]
[1765895199310,0.05015064,127.83,127.82,5.00554618]
[1765895199512,118.93833848,127.9,127.83,3.06]
[1765895199513,69.7,127.9,127.83,3.06]
[1765895199810,7.0397,127.88,127.86,3.06]
[1765895200602,7.09182811,127.88,127.86,3.11015064]
[1765895200801,10.43182811,127.88,127.86,0.05015064]
[1765895201105,3.34,127.87,127.86,0.05015064]
[1765895203416,10.43182811,127.88,127.86,0.05015064]
[1765895203600,3.34,127.87,127.86,0.05015064]
[1765895203802,10.3815,127.84,127.78,3.06]
[1765895204103,10.3815,127.84,127.81,5.00462392]
[1765895204303,10.3815,127.84,127.82,1.94462392]
[1765895204304,3.34,127.84,127.82,1.94462392]
[1765895204498,3.34,127.84,127.81,3.06]
[1765895204695,3.34,127.84,127.82,1.94389051]
[1765895204894,3.39196725,127.84,127.82,1.94389051]
[1765895206311,0.05196725,127.84,127.82,5.00389051]
[1765895206499,0.05196725,127.84,127.82,3.06]
[1765895208011,0.05196725,127.84,127.8,3.06]
[1765895208216,0.05196725,127.84,127.83,3.06]
[1765895212911,0.05196725,127.84,127.75,63.36134257]
[1765895212912,112.8845,127.83,127.76,14.48265427]
[1765895213120,0.05899342,127.81,127.8,1.94343489]
[1765895213619,7.10219342,127.81,127.8,1.94343489]
[1765895215315,3.34,127.79,127.71,3.06]
[1765895215518,0.05574056,127.76,127.71,3.06]
[1765895215923,0.05574056,127.76,127.73,3.06]
[1765895216419,0.05574056,127.76,127.75,3.06]
[1765895216618,3.34,127.85,127.77,3.06]
[1765895216823,3.34,127.84,127.8,5.00017759]
[1765895217025,7.0426,127.83,127.8,3.06]
[1765895217319,7.0426,127.83,127.81,1.94003165]
[1765895217522,7.09969972,127.83,127.81,1.99485484]
[1765895217712,7.09969972,127.83,127.81,0.05482319]
[1765895217919,112.9127,127.8,127.72,3.06]
[1765895218115,3.34,127.79,127.72,10.1079]
[1765895218313,3.34,127.79,127.72,3.06]
[1765895218514,5.65145246,127.81,127.72,3.06]
[1765895218815,112.8953,127.82,127.76,3.06]
[1765895219017,0.0567228,127.78,127.76,3.06]
[1765895220017,0.0567228,127.78,127.76,10.1059]
[1765895220226,3.34,127.85,127.77,3.06]
[1765895220421,3.34,127.85,127.81,3.06]
[1765895220621,3.34,127.85,127.82,1.93763606]
[1765895220920,7.0417,127.84,127.81,3.06]
[1765895221129,112.8311,127.9,127.83,3.06]
[1765895221433,0.04950402,127.88,127.85,1.98845589]
[1765895221635,0.04950402,127.88,127.85,0.05174666]
[1765895221827,7.04,127.87,127.85,1.98867636]
[1765895222133,0.04950402,127.88,127.86,1.93656567]
[1765895222828,0.04950402,127.88,127.85,0.05174666]
[1765895223026,3.38950402,127.88,127.86,1.93678764]
[1765895223221,3.38950402,127.88,127.85,0.05174666]
[1765895223222,3.34,127.87,127.85,0.05174666]
[1765895224143,109.5474,127.83,127.76,14.48265427]
[1765895224343,3.12,127.81,127.79,1.93816572]
[1765895224635,3.12,127.81,127.75,3.35]
[1765895224828,3.12,127.78,127.77,1.93809288]
[1765895225023,3.12,127.78,127.72,3.35]
[1765895225228,3.12,127.84,127.77,3.35]
[1765895225435,0.05615753,127.82,127.8,5.28871383]
[1765895225638,0.05615753,127.82,127.77,7.0453]
[1765895225840,0.05615753,127.82,127.8,1.93758582]
[1765895226044,7.09885753,127.82,127.8,1.93758582]
[1765895228133,7.09885753,127.82,127.78,3.35]
[1765895228344,7.09885753,127.82,127.8,1.93802062]
[1765895228747,0.05615753,127.82,127.8,5.28802062]
[1765895228951,0.05615753,127.82,127.81,1.93802062]
[1765895229250,0.05615753,127.82,127.79,3.35]
[1765895229451,0.05615753,127.82,127.81,1.93830501]
[1765895230534,0.05615753,127.82,127.81,5.28830501]
[1765895230740,0.05615753,127.82,127.81,3.35]
[1765895237348,0.05615753,127.82,127.8,7.0437]
[1765895237851,0.05615753,127.82,127.8,10.3937]
[1765895239151,3.12,127.86,127.83,3.35]
[1765895239351,3.12,127.86,127.78,109.5829]
[1765895239352,3.12,127.86,127.84,1.94315758]
[1765895240058,3.17459214,127.86,127.84,2.0014932]
[1765895240356,3.17459214,127.86,127.84,0.05833562]
[1765895240654,3.17459214,127.86,127.84,2.00203663]
[1765895240855,3.17459214,127.86,127.84,0.05833562]
[1765895241153,10.21539214,127.86,127.84,2.00203663]
[1765895241451,10.21539214,127.86,127.84,0.05833562]
[1765895241649,10.21539214,127.86,127.84,2.00235654]
[1765895241854,10.161,127.85,127.84,0.05833562]
[1765895242251,3.12,127.84,127.79,3.35]
[1765895242450,3.12,127.83,127.82,1.94465472]
[1765895242953,3.12,127.83,127.79,10.3942]
[1765895243157,3.12,127.83,127.81,1.94475205]
[1765895243354,3.17357705,127.83,127.81,1.94475205]
[1765895243555,10.21567705,127.83,127.81,1.94475205]
[1765895244159,10.1627,127.82,127.81,1.94475205]
[1765895244360,3.12,127.81,127.8,1.94475205]
[1765895244866,3.12,127.81,127.78,3.35]
[1765895245052,0.05593354,127.81,127.79,1.9450266]
[1765895245252,0.05593354,127.81,127.78,10.3948]
[1765895245253,0.05593354,127.81,127.8,1.9450266]
[1765895245754,0.05593354,127.81,127.8,10.3938]
[1765895245949,8.7903126,127.88,127.81,3.35]
[1765895246158,7.0405,127.86,127.83,5.29476989]
[1765895246354,10.1605,127.86,127.83,3.35]
[1765895246860,10.1605,127.86,127.83,3.39923412]
[1765895247060,0.05242189,127.86,127.84,1.94477255]
[1765895247255,3.17242189,127.86,127.84,1.94477255]
[1765895247652,0.05242189,127.86,127.84,5.29477255]
[1765895247852,0.05242189,127.86,127.85,1.94477255]
[1765895248057,0.05242189,127.86,127.84,3.35]
[1765895248254,0.05242189,127.86,127.85,1.94451303]
[1765895250358,0.05242189,127.86,127.84,1.94451303]
[1765895250558,0.05242189,127.86,127.83,3.39923412]
[1765895250758,0.05242189,127.86,127.84,1.94413529]
[1765895251356,0.05242189,127.86,127.85,5.29413529]
[1765895251563,0.05242189,127.86,127.85,3.35]
[1765895253254,0.05242189,127.86,127.85,10.391]
[1765895255068,3.09,127.92,127.85,10.391]
[1765895255268,3.09,127.92,127.87,1.94281926]
[1765895256075,3.14845194,127.91,127.88,0.05467515]
[1765895256460,10.1288,127.89,127.88,0.05467515]
[1765895256661,10.1288,127.89,127.88,0.00467515]
[1765895256860,11.6888,127.89,127.88,0.00467515]
[1765895260570,11.6888,127.89,127.8,66.32]
[1765895260571,3.09,127.86,127.8,66.32]
[1765895260770,3.09,127.86,127.82,1.94320551]
[1765895261168,7.0416,127.84,127.82,1.94320551]
[1765895261670,7.10071832,127.84,127.82,1.99711856]
[1765895261867,7.0421,127.83,127.82,0.05391305]
[1765895262072,7.0421,127.83,127.82,1.99830697]
[1765895262274,10.19071832,127.84,127.82,0.05391305]
[1765895262569,109.4517,127.94,127.87,3.23]
[1765895262870,3.09,127.95,127.92,1.9433084]
[1765895263072,3.09,127.95,127.91,3.23]
[1765895263271,3.09,127.95,127.92,1.94425807]
[1765895263462,3.14750356,127.95,127.92,1.99935482]
[1765895263666,3.14750356,127.95,127.92,0.05509675]
[1765895263868,7.036,127.94,127.92,1.99795702]
[1765895264069,7.036,127.94,127.92,0.05509675]
[1765895264268,7.036,127.94,127.92,1.99832416]
[1765895264473,7.036,127.94,127.92,0.05509675]
[1765895264674,7.036,127.94,127.92,1.99715253]
[1765895264875,0.05750356,127.95,127.92,3.28509675]
[1765895265269,0.05750356,127.95,127.94,10.266]
[1765895265470,123.54790927,128.04,127.95,3.23]
[1765895265675,3.09,128.03,127.97,1.93994963]
[1765895266174,10.1224,128.01,127.97,1.93994963]
[1765895266565,0.05224353,128.0,127.98,0.05396979]
[1765895267174,0.05224353,128.0,127.98,3.28396979]
[1765895267878,7.0303,128.05,127.99,3.23]
[1765895268073,10.1203,128.05,128.02,1.93380944]
[1765895268275,10.119,128.07,128.03,1.93380944]
[1765895268478,10.119,128.07,128.04,1.929205]
[1765895268777,10.17594308,128.07,128.04,1.98598682]
[1765895269071,10.17594308,128.07,128.04,0.05678182]
[1765895269276,10.17594308,128.07,128.04,1.98609373]
[1765895269466,0.05694308,128.07,128.05,3.23]
[1765895269665,3.09,128.15,128.07,3.23]
[1765895269869,3.09,128.15,128.1,1.92931191]
[1765895270173,3.09,128.17,128.11,5.15931191]
[1765895270367,3.09,128.17,128.11,3.23]
[1765895270672,0.05925987,128.15,128.14,1.91600018]
[1765895270879,0.05106515,128.16,128.14,3.23]
[1765895271076,0.05106515,128.16,128.14,3.28057608]
[1765895272563,3.14106515,128.16,128.14,0.05057608]
[1765895272775,3.09,128.15,128.07,3.23]
[1765895272973,3.09,128.15,128.1,1.90679924]
[1765895273276,3.09,128.16,128.12,1.90679924]
[1765895273470,3.09,128.16,128.08,3.23]
[1765895273673,0.05319289,128.13,128.12,1.90314715]
[1765895273976,0.05319289,128.13,128.11,3.28391191]
[1765895274274,0.05319289,128.13,128.12,1.9025866]
[1765895275378,112.3022,128.22,128.14,3.23]
[1765895275575,3.09,128.2,128.15,1.9025866]
[1765895275776,3.09,128.2,128.14,3.23]
[1765895275971,3.09,128.19,128.11,3.23]
[1765895276277,0.05384903,128.16,128.14,1.95197951]
[1765895276479,0.05384903,128.16,128.14,0.05461192]
[1765895276773,3.14384903,128.16,128.14,0.05461192]
[1765895278371,3.09,128.15,128.08,3.23]
[1765895278572,3.09,128.18,128.11,3.23]
[1765895278786,3.09,128.18,128.13,1.89423472]
[1765895279078,3.09,128.18,128.11,3.23]
[1765895279274,3.09,128.18,128.13,1.89281119]
[1765895279576,0.05285225,128.17,128.14,1.94387666]
[1765895279789,0.05285225,128.17,128.14,0.05106547]
[1765895279986,0.05285225,128.17,128.14,1.94299616]
[1765895280171,0.05285225,128.17,128.14,0.05106547]
[1765895280374,3.09,128.25,128.16,3.23]
[1765895280580,3.09,128.25,128.18,5.12045344]
[1765895280777,3.09,128.25,128.19,5.12045344]
[1765895281080,10.108,128.27,128.22,5.12045344]
[1765895281281,10.108,128.27,128.22,3.23]
[1765895281470,10.108,128.27,128.14,3.23]
[1765895281471,112.3016,128.22,128.14,3.23]
[1765895281683,3.09,128.21,128.17,1.88916113]
[1765895281869,0.0531346,128.19,128.18,5.11916113]
[1765895282070,0.05076158,128.2,128.19,3.23]
[1765895282274,0.0577988,128.21,128.19,3.23]
[1765895282682,0.0577988,128.21,128.2,5.11723865]
[1765895282874,0.0577988,128.21,128.2,3.23]
[1765895283072,3.09,128.28,128.2,3.23]
[1765895283284,3.09,128.28,128.23,5.11641805]
[1765895283485,3.09,128.28,128.24,1.88641805]
[1765895283676,3.09,128.28,128.23,3.23]
[1765895283877,3.09,128.28,128.24,1.88361351]
[1765895284078,0.05764896,128.27,128.25,0.05399042]
[1765895284484,3.44764896,128.27,128.25,0.05399042]
[1765895284990,3.39,128.25,128.19,3.29]
[1765895285182,3.39,128.25,128.2,1.88130417]
[1765895285375,3.39,128.25,128.21,1.88130417]
[1765895285685,3.39,128.23,128.17,7.0233]
[1765895285884,3.39,128.23,128.2,1.87950308]
[1765895286076,3.39,128.23,128.19,1.87950308]
[1765895286281,0.05103586,128.22,128.2,0.05548212]
[1765895286677,0.05103586,128.22,128.2,3.34548212]
[1765895287687,109.1608,128.28,128.21,5.16828777]
[1765895287985,3.39,128.27,128.22,1.8773212]
[1765895288185,10.4087,128.26,128.22,1.8773212]
[1765895288583,0.05460902,128.25,128.23,0.05768575]
[1765895295286,0.05460902,128.25,128.23,3.34768575]
[1765895295490,0.05460902,128.25,128.24,5.1610537]
[1765895295686,0.05460902,128.25,128.24,3.29]
[1765895296083,7.07380902,128.25,128.23,0.05768575]
[1765895296288,10.46380902,128.25,128.23,0.05768575]
[1765895296489,10.46380902,128.25,128.24,5.16199295]
[1765895296490,0.05460902,128.25,128.24,5.16199295]
[1765895296693,0.05460902,128.25,128.23,0.05768575]
[1765895296997,0.05460902,128.25,128.24,1.87214418]
[1765895297992,0.05460902,128.25,128.23,3.34768575]
[1765895298194,0.05460902,128.25,128.24,1.87278698]
[1765895298999,0.05460902,128.25,128.23,3.34768575]
[1765895299601,10.46370902,128.25,128.23,0.05768575]
[1765895299794,3.39,128.24,128.23,0.05768575]
[1765895299995,7.07370902,128.25,128.23,0.05768575]
[1765895300499,3.39,128.36,128.27,3.29]
[1765895300695,26.95341538,128.36,128.3,5.16522393]
[1765895300995,3.39,128.36,128.3,3.29]
[1765895301199,3.39,128.39,128.33,3.29]
[1765895301403,3.39,128.39,128.35,3.29]
[1765895301702,0.05931814,128.37,128.35,3.34299604]
[1765895301896,0.05931814,128.37,128.35,0.05299604]
[1765895302999,0.05931814,128.37,128.36,5.16118209]
[1765895303303,112.4297,128.43,128.36,3.29]
[1765895303499,3.39,128.42,128.38,1.87131253]
[1765895304096,3.39,128.43,128.38,3.29]
[1765895304308,0.05097877,128.42,128.4,3.29]
[1765895304505,0.05097877,128.42,128.4,3.34471126]
[1765895305015,0.05097877,128.42,128.41,5.16109586]
[1765895305213,7.0071,128.47,128.41,3.29]
[1765895305406,112.3906,128.47,128.42,5.1633132]
[1765895305602,112.3906,128.47,128.43,1.87112516]
[1765895305801,112.3906,128.47,128.42,3.29]
[1765895306012,112.3691,128.5,128.43,5.16116933]
[1765895306218,112.3691,128.5,128.4,7.82076811]
[1765895306219,0.0587935,128.48,128.45,3.34097167]
[1765895306804,0.0587935,128.48,128.46,5.1613624]
[1765895307010,0.0587935,128.48,128.47,5.1613624]
[1765895307318,108.9277,128.56,128.47,3.29]
[1765895307619,112.2931,128.59,128.53,1.87128518]
[1765895307916,112.2931,128.59,128.54,1.87128518]
[1765895308111,10.3907,128.59,128.52,3.29]
[1765895308412,10.3907,128.59,128.55,0.00241748]
[1765895308413,3.39,128.56,128.55,0.00241748]
[1765895308619,3.39,128.56,128.53,1.86989335]
[1765895308620,3.39,128.55,128.48,3.29]
[1765895308919,3.39,128.55,128.51,1.86987384]
[1765895309414,112.39187475,128.54,128.52,0.05882753]
[1765895310115,7.0037,128.53,128.52,0.05882753]
[1765895311105,10.3937,128.53,128.52,0.05882753]
[1765895312313,10.3937,128.53,128.46,3.29]
[1765895312513,3.39,128.51,128.48,1.87141557]
[1765895313421,3.44269297,128.51,128.48,1.92496404]
[1765895313621,3.44269297,128.51,128.48,0.05354847]
[1765895313826,3.34,128.5,128.48,0.05354847]
[1765895314127,3.34,128.58,128.49,3.21]
[1765895314313,3.34,128.61,128.53,3.21]
[1765895314512,108.8691,128.63,128.53,3.21]
[1765895314513,120.01696811,128.64,128.56,3.21]
[1765895314718,3.34,128.64,128.58,1.87041635]
[1765895314916,3.34,128.63,128.59,9.26770008]
[1765895315118,0.05831976,128.62,128.6,7.45273442]
[1765895315319,0.05831976,128.62,128.61,7.39728373]
[1765895315522,0.05831976,128.62,128.6,0.05545069]
[1765895315723,0.05831976,128.62,128.6,3.26545069]
[1765895317120,0.05831976,128.62,128.61,5.06968296]
[1765895317418,0.05831976,128.62,128.61,3.21]
[1765895317726,108.8262,128.68,128.61,3.21]
[1765895317931,6.9964,128.67,128.63,1.85604036]
[1765895318429,77.24076811,128.7,128.63,1.85604036]
[1765895318625,0.05376718,128.66,128.64,0.04992965]
[1765895318820,0.05376718,128.66,128.64,3.25992965]
[1765895319017,112.23196718,128.66,128.64,0.04992965]
[1765895319332,112.23196718,128.66,128.6,3.21]
[1765895319333,3.34,128.65,128.6,3.21]
[1765895319518,108.864,128.63,128.56,3.21]
[1765895319718,3.34,128.6,128.53,3.21]
[1765895319925,112.2467,128.58,128.53,3.21]
[1765895320125,7.0019,128.57,128.5,11.03076811]
[1765895320423,0.05408486,128.55,128.52,3.26485181]
[1765895320731,0.05408486,128.55,128.54,1.85571464]
[1765895322130,0.05408486,128.55,128.53,1.85571464]